Cogmind - Beta 14 @@@ ROGUE MODE // 2024.10.03 @ 20:01:05 Player: siona Result: Self-destructed Performance ------------- Evolutions (2) 1000 Regions Visited (5) 1000 Robots Destroyed (1) 5 Value Destroyed (16) 16 Prototype IDs (24) 480 Alien Tech Used (0) 0 Bonus (321) 321 TOTAL SCORE: 2822 Bonus ------- Follower Combat Kills 21 Aligned with FarCom 300 Cogmind --------- Core Integrity 186/550 Matter 282/300 Energy 100/100 System Corruption 0% Temperature Cool (2) Movement Flying (35) Location -8/Materials Parts ------- > --- POWER (2) -------- (None) > --- PROPULSION (4) --- VTOL Module > --- UTILITY (3) ------ (None) > --- WEAPON (2) ------- (None) > --- INVENTORY (5) ---- Light Nuclear Core VTOL Module Cloak of Protection Improved Medium Laser Scythe Peak State ------------ > --- POWER ------------ Light Ion Engine > --- PROPULSION ------- VTOL Module VTOL Module > --- UTILITY ---------- (None) > --- WEAPON ----------- Improved Medium Laser Improved Medium Laser > --- INVENTORY -------- VTOL Module VTOL Module Small Laser Small Laser Assault Rifle [Rating: 11] Favorites ----------- Power Light Ion Engine Engine Light Ion Engine Propulsion VTOL Module Flight Unit VTOL Module Utility None Weapon Mining Laser Energy Gun Improved Medium Laser Ballistic Gun Assault Rifle Special Weapon Mining Laser Build | -11 -10 -10 -10 -9 -8 ------- Run | Yrd Mat Min Exi Min Mat Slots Evolved 4 | . . . . . 4 Power 1 | . . . . . 1 Propulsion 2 | . . . . . 2 Utility 1 | . . . . . 1 Weapon . | . . . . . . Parts Attached 9 | . 6 1 . 1 1 Power 1 | . 1 . . . . Engine 1 | . 1 . . . . Core . | . . . . . . Reactor . | . . . . . . Propulsion 3 | . 2 . . . 1 Treads . | . . . . . . Leg . | . . . . . . Wheel . | . . . . . . Hover . | . . . . . . Flight 3 | . 2 . . . 1 Utility . | . . . . . . Device . | . . . . . . Storage . | . . . . . . Processor . | . . . . . . Hackware . | . . . . . . Protection . | . . . . . . Artifact . | . . . . . . Weapon 5 | . 3 1 . 1 . Energy Gun 3 | . 3 . . . . Energy Cannon . | . . . . . . Ballistic Gun 1 | . . . . 1 . Ballistic Cannon . | . . . . . . Launcher . | . . . . . . Special Weapon 1 | . . 1 . . . Impact Weapon . | . . . . . . Slashing Weapon . | . . . . . . Piercing Weapon . | . . . . . . Special Melee Weapon . | . . . . . . Unidentified Prototypes 1 | . 1 . . . . Parts Lost 5 | . . . . . 5 Power 1 | . . . . . 1 Propulsion 2 | . . . . . 2 Utility . | . . . . . . Weapon 2 | . . . . . 2 Highest Loss Streak 5 | . . . . . 5 To Critical Strikes . | . . . . . . Average Slot Usage (%) 45 | . 32 66 71 71 38 Engine 9 | . 8 14 14 14 7 Flight 19 | . 16 28 28 28 16 Energy Gun 4 | . 7 14 14 2 . Ballistic Gun 4 | . . . . 12 7 Special Weapon 6 | . . 9 14 14 7 Peak Build Rating 11 | . 11 10 10 10 8 Average Rating 6 | . 5 9 10 8 7 On Entrance 6 | . . 9 10 10 8 Naked Turns 82 | . 81 . . . 1 Heaviest Build 9 | . 9 7 7 7 6 Greatest Support 8 | 3 8 8 8 8 8 Greatest Overweight (x) 1 | . 1 . . . . Average Overweight (x) . | . . . . . . Largest Inventory Capacity 5 | 5 5 5 5 5 5 Average Capacity 5 | 5 5 5 5 5 5 Most Carried 5 | 4 5 5 5 5 5 Average Carried 4 | 2 3 4 4 5 4 Final Capacity 5 | 5 5 5 5 5 5 Final Carried 5 | 4 5 5 5 5 5 Class Distribution -------------------- 79% | Sprinter 20% | Mutant Dominant Class ---------------- Sprinter | -10/Materials Sprinter | -10/Mines Sprinter | -10/Exiles Sprinter | -9/Mines Sprinter | -8/Materials Resources | -11 -10 -10 -10 -9 -8 ----------- Run | Yrd Mat Min Exi Min Mat Matter Collected 268 | 117 17 104 . 30 . Remotely . | . . . . . . Salvage Created 17 | . 17 . . . . Parts 2 | . 2 . . . . Haulers Intercepted . | . . . . . . Recyclers Shooed . | . . . . . . Parts Field Recycled . | . . . . . . Retrieved Matter . | . . . . . . Parts Self-Destructed . | . . . . . . Prevented . | . . . . . . Kills | -11 -10 -10 -10 -9 -8 ------- Run | Yrd Mat Min Exi Min Mat Combat Hostiles Destroyed . | . . . . . . Classes Destroyed 1 | . 1 . . . . Operator 1 | . 1 . . . . Best Kill Streak 1 | . 1 . . . . Combat Bots Only . | . . . . . . Max Kills in Single Turn 1 | . 1 . . . . Gunslinging . | . . . . . . Exploded . | . . . . . . Melee . | . . . . . . Uniques/NPCs Destroyed . | . . . . . . Combat | -11 -10 -10 -10 -9 -8 -------- Run | Yrd Mat Min Exi Min Mat Hostile Shots Fired 101 | . 10 2 . 12 77 Missed 60 | . 8 2 . 7 43 Damage Taken 647 | . 22 . . 90 535 Core 418 | . 10 . . 44 364 Absorbed by Shields . | . . . . . . Core Remaining (%) 89 | 100 . . . 78 . Volleys Fired 12 | . 3 . . . 9 Largest 1 | . 1 . . . 1 Hottest 100 | . 56 . . . 100 Shots Fired 12 | . 3 . . . 9 Gun 10 | . 3 . . . 7 Cannon . | . . . . . . Launcher . | . . . . . . Special 2 | . . . . . 2 Kinetic 7 | . . . . . 7 Thermal 5 | . 3 . . . 2 Explosive . | . . . . . . Electromagnetic . | . . . . . . Robot Hit Streak 2 | . 2 . . . 2 Robot Miss Streak 3 | . 1 . . . 3 Penetration Max . | . . . . . . Secondary Targets . | . . . . . . Shots Hit Robots 5 | . 2 . . . 3 Core Hits 2 | . 1 . . . 1 Critical Kills . | . . . . . . Critical Parts Destroyed . | . . . . . . Critical Strikes . | . . . . . . Melee Attacks . | . . . . . . Impact . | . . . . . . Slashing . | . . . . . . Piercing . | . . . . . . Sneak Attacks . | . . . . . . Combat Hostiles . | . . . . . . Follow-up Attacks . | . . . . . . Damage Inflicted 73 | . 32 . . . 41 Guns 73 | . 32 . . . 41 Cannons . | . . . . . . Explosions . | . . . . . . Melee . | . . . . . . Ramming . | . . . . . . Kinetic 41 | . . . . . 41 Thermal 32 | . 32 . . . . Explosive . | . . . . . . Electromagnetic . | . . . . . . Impact . | . . . . . . Slashing . | . . . . . . Piercing . | . . . . . . Highest Corruption . | . . . . . . Average Corruption . | . . . . . . Corruption Purged . | . . . . . . Corruption Blocked . | . . . . . . Overload Shots . | . . . . . . Overflow Damage . | . . . . . . Projectiles . | . . . . . . Explosions . | . . . . . . Melee . | . . . . . . Knockbacks . | . . . . . . Impact . | . . . . . . Kinetic . | . . . . . . Secondary . | . . . . . . Self-Inflicted Damage . | . . . . . . Shots . | . . . . . . Rammed . | . . . . . . Targets Rammed . | . . . . . . Kicked . | . . . . . . Crushed . | . . . . . . Highest Temperature 32 | . 32 . . . 12 Average Temperature 11 | . 15 . . . 8 Received Heat Transfer 174 | . 12 . . . 162 Siege Activations . | . . . . . . Robots Corrupted . | . . . . . . Combat Hostiles . | . . . . . . Parts Fried . | . . . . . . Impact Corruptions . | . . . . . . Robots Melted . | . . . . . . Combat Hostiles . | . . . . . . Parts Melted 1 | . 1 . . . . Heat Transferred 74 | . 74 . . . . Parts Sabotaged . | . . . . . . Parts Stolen . | . . . . . . Parts Stripped . | . . . . . . Power Chain Reactions . | . . . . . . Alert | -11 -10 -10 -10 -9 -8 ------- Run | Yrd Mat Min Exi Min Mat Peak Influence 230 | . 50 103 . 60 230 Initial 23 | . . 19 . . 23 Average 39 | . 21 70 . 11 54 Maximum Alert Level 1 | . . . . . 1 Low Security (%) 99 | 100 100 100 . 100 97 Level 1 . | . . . . . 2 Level 2 . | . . . . . . Level 3 . | . . . . . . Level 4 . | . . . . . . Level 5 . | . . . . . . High Security . | . . . . . . Max Security . | . . . . . . Squads Dispatched 4 | . 1 . . . 3 Investigation 1 | . . . . . 1 Extermination . | . . . . . . Reinforcement 3 | . 1 . . . 2 Assault . | . . . . . . Garrison . | . . . . . . Intercept . | . . . . . . Searches Triggered . | . . . . . . Construction Impeded . | . . . . . . Haulers Reinforced . | . . . . . . Active Scanning Responses . | . . . . . . Cargo Convoy Interrupts . | . . . . . . Stealth | -11 -10 -10 -10 -9 -8 --------- Run | Yrd Mat Min Exi Min Mat Distress Signals 3 | . . . . . 3 Communications Jammed . | . . . . . . Distress Signals . | . . . . . . Times Spotted 61 | . 10 3 . 18 30 Peak Tracking Total 19 | . 5 3 . 17 19 Tactical Retreats 6 | . 2 . . 1 3 Traps | -11 -10 -10 -10 -9 -8 ------- Run | Yrd Mat Min Exi Min Mat Traps Triggered . | . . . . . . Indirectly . | . . . . . . Trap Hack Attempts . | . . . . . . Triggered . | . . . . . . Disarmed . | . . . . . . Reprogrammed . | . . . . . . Reused . | . . . . . . Traps Extracted . | . . . . . . Installed . | . . . . . . Triggered . | . . . . . . Machines | -11 -10 -10 -10 -9 -8 ---------- Run | Yrd Mat Min Exi Min Mat Machines Disabled . | . . . . . . Max in Single Turn . | . . . . . . Machines Repaired . | . . . . . . Machines Dismantled . | . . . . . . Machines Sabotaged . | . . . . . . Overloaded Fab Kills . | . . . . . . Hacking | -11 -10 -10 -10 -9 -8 --------- Run | Yrd Mat Min Exi Min Mat Machines Accessed 4 | . . 1 1 . 2 Terminals 3 | . . 1 . . 2 Fabricators . | . . . . . . Repair Stations . | . . . . . . Recycling Units . | . . . . . . Scanalyzers . | . . . . . . Garrison Access . | . . . . . . Total Hacks 7 | . . 1 1 . 5 Successful 5 | . . 1 1 . 3 Failed 2 | . . . . . 2 Catastrophic . | . . . . . . Database Lockouts . | . . . . . . Manual 1 | . . . 1 . . Terminals 6 | . . 1 . . 5 Fabricators . | . . . . . . Repair Stations . | . . . . . . Recycling Units . | . . . . . . Scanalyzers . | . . . . . . Garrison Access . | . . . . . . Terminal Hacks 5 | . . 1 1 . 3 Record 1 | . . . . . 1 Dispatch Records 2 | . . 1 . . 1 Assault Status 1 | . . . . . 1 Derelict Proto ID Bank 1 | . . . 1 . . Fabricator Hacks . | . . . . . . Repair Station Hacks . | . . . . . . Recycling Unit Hacks . | . . . . . . Scanalyzer . | . . . . . . Garrison Access Hacks . | . . . . . . Unauthorized Hacks . | . . . . . . Terminals . | . . . . . . Fabricators . | . . . . . . Repair Stations . | . . . . . . Recycling Units . | . . . . . . Scanalyzers . | . . . . . . Garrison Access . | . . . . . . Data Cores Recovered . | . . . . . . Used . | . . . . . . Hacking Detections 2 | . . . . . 2 Full Trace Events 1 | . . . . . 1 Feedback Events . | . . . . . . Feedback Blocked . | . . . . . . Robot Schematics Acquired . | . . . . . . Robots Built . | . . . . . . Authchips . | . . . . . . Time . | . . . . . . Total Robot Build Rating . | . . . . . . Part Schematics Acquired . | . . . . . . Parts Built . | . . . . . . Authchips . | . . . . . . Time . | . . . . . . Total Part Build Rating . | . . . . . . Parts Repaired . | . . . . . . Time . | . . . . . . Parts Recycled . | . . . . . . Recycled Matter . | . . . . . . Retrieved Matter . | . . . . . . Retrieved Components . | . . . . . . Parts Scanalyzed . | . . . . . . Part Schematics Acquired . | . . . . . . Parts Damaged . | . . . . . . Bothacking | -11 -10 -10 -10 -9 -8 ------------ Run | Yrd Mat Min Exi Min Mat Used RIF Installer . | . . . . . . Robots Hacked . | . . . . . . Non-combat . | . . . . . . Combat . | . . . . . . Robot Hacks Applied . | . . . . . . Relay Couplers Released . | . . . . . . Fabnet Peak Effective % . | . . . . . . Robots Rewired . | . . . . . . Allies Hacked . | . . . . . . Hacks Repelled . | . . . . . . Allies | -11 -10 -10 -10 -9 -8 -------- Run | Yrd Mat Min Exi Min Mat Total Allies 3 | . . 3 . . . Largest Group 3 | . . 3 . . . Highest-Rated Group 74 | . . 74 . . . Highest-Rated Ally 31 | . . 31 . . . Total Orders . | . . . . . . Ally Attacks 6 | . . 6 . . . Total Damage 126 | . . 126 . . . Kills 3 | . . 3 . . . Allies Corrupted . | . . . . . . Allies Melted . | . . . . . . Intel | -11 -10 -10 -10 -9 -8 ------- Run | Yrd Mat Min Exi Min Mat Robot Analysis Total . | . . . . . . Derelict Logs Recovered 1 | . . 1 . . . Drone Launches . | . . . . . . Drone Recoveries . | . . . . . . Exploration | -11 -10 -10 -10 -9 -8 ------------- Run | Yrd Mat Min Exi Min Mat Turns Passed 712 | 23 194 55 70 76 294 Spaces Moved 1353 | 38 342 158 213 232 370 Core 166 | 38 128 . . . . Treads . | . . . . . . Legs . | . . . . . . Wheels . | . . . . . . Hover . | . . . . . . Flight 1187 | . 214 158 213 232 370 Fastest Speed 32 | 50 32 32 32 32 32 Average Speed 34 | 50 38 32 32 32 33 Slowest Speed 112 | 50 112 32 32 32 35 Overloaded Moves . | . . . . . . Propulsion Burnouts . | . . . . . . Robots Hopped 24 | . . 2 . 13 9 Cave-ins Triggered . | . . . . . . Exploration Rate (%) 41 | 3 58 32 59 51 46 Regions Visited 5 Branch Regions 3 Pre-discovered Areas . | . . . . . . Known Exits Taken . | . . . . . . Unknown Exits Taken 5 | 1 1 1 1 1 . Scrap Searched 1 | . . . . 1 . Spaces Dug . | . . . . . . Terrain Destroyed . | . . . . . . Melee . | . . . . . . Projectile . | . . . . . . AOE . | . . . . . . Terrain Rammed . | . . . . . . Walls Destroyed . | . . . . . . Machines Disabled . | . . . . . . Actions | -11 -10 -10 -10 -9 -8 --------- Run | Yrd Mat Min Exi Min Mat Total 1554 | 41 400 159 214 220 520 Wait 186 | . 38 2 . . 146 Move 1304 | 37 341 153 212 207 354 Hop 20 | . . 2 . 11 7 Pick Up 14 | 4 6 1 1 . 2 Fast Attach 5 | . 4 . . 1 . Attach 4 | . 2 1 . . 1 Detach 1 | . 1 . . . . Swap . | . . . . . . Drop 8 | . 5 . 1 1 1 Fire 12 | . 3 . . . 9 Melee . | . . . . . . Ram . | . . . . . . Kick . | . . . . . . Crush . | . . . . . . Escape Stasis . | . . . . . . Rewire . | . . . . . . Trap . | . . . . . . Miscellaneous . | . . . . . . Route ------- -11/Scrapyard -10/Materials (discovered 2 exits: [*Mat] / *Min) -10/Mines (discovered 2 exits: [*Mat] / *Exi) -10/Exiles -9/Mines -8/Materials (discovered 1 exit: [*Fac]) History --------- Turn | Location | Event 18 | -11/Scrapyard | Discovered new exit (range 14) 24 | -11/Scrapyard | Entered Materials 124 | -10/Materials | Discovered new exit (range 16) 201 | -10/Materials | Discovered new exit (range 16) 218 | -10/Materials | Entered Mines 222 | -10/Mines | Met a Derelict bent on vengeance 223 | -10/Mines | Discovered new exit (range 14) 232 | -10/Mines | Escorted by a lone wolf Derelict 253 | -10/Mines | Learned Materials emergency access door positions 271 | -10/Mines | Deemed a non-threat by the Exiles lab entrance 271 | -10/Mines | Discovered new exit (range 5) 273 | -10/Mines | Entered Exiles 281 | -10/Exiles | Met 8R-AWN 287 | -10/Exiles | Met EX-HEX 296 | -10/Exiles | Met EX-BIN 300 | -10/Exiles | Aligned with FarCom system 301 | -10/Exiles | Given EX-Vault access code 308 | -10/Exiles | Opened EX-Vault 312 | -10/Exiles | Found Cloak of Protection 319 | -10/Exiles | Warned to stay clear of 0b10 Research branches 328 | -10/Exiles | Met EX-DEC 339 | -10/Exiles | Discovered new exit (range 12) 343 | -10/Exiles | Left Exiles lab with Cloak of Protection 343 | -10/Exiles | Entered Mines 372 | -9/Mines | Assembled infested the area 377 | -9/Mines | Assisted by a Guerilla fighting off Assembled 413 | -9/Mines | Build established: Sprinter 418 | -9/Mines | Discovered new exit (range 5) 419 | -9/Mines | Entered Materials 419 | -8/Materials | Evolved 4 slots: Power x1, Propulsion x2, Utility x1 695 | -8/Materials | Core integrity fell below 50% 695 | -8/Materials | Discovered new exit (range 5) 713 | -8/Materials | Self-destructed Last Messages --------------- 00653_ K-01 Serf collects debris. 00654_ Mining Laser destroyed. 00656_ S-10 Pest destroyed. 00658_ Assault Rifle destroyed. 00662_ W-25 Informer sends out distress signal. 00664_ VTOL Module destroyed. 00664_ W-25 Informer sends out distress signal. 00677_ Dropped Imp. Medium Laser. 00677_ Acquired Lgt. Nuclear Core. 00683_ U-05 Engineer destroyed. 00683_ Penetrated by Slug. 00685_ VTOL Module destroyed. 00691_ O-16 Technician: "IFF HANDSHAKE FAILED. SECURING TERMINAL." 00695_ ALERT: Hostiles spotted, dispatching reinforcements to Terminal M006. 00695_ EXIT=FOUND 00696_ A-02 Transporter destroyed. 00705_ Acquired Scythe. 00708_ T-07 Excavator is excavating. Map ----- +----------------------------------------------------+ | ???????????????????????????????????????????# # | | ???????????????????????????????????????????# """ # | | ???????????????????????????????????????????# "T" # | | ??????????????????????????????????+########? # | | ???????????????????????????????????# ####+### | | ???????????????????????????????????# """ # | | ???????????????????????????????????# """ " | | ???????????????????????????????????# """ # | | ???????????????????????????????????# !######## | | ???????????????????????????????????# """ #??##### | | ???????????????????????????????????# """ %#??# | | ???????????????????????????????????# """ #??# """ | | ???????????????????????????????????# !#??# """ | | ???????????????????????????????????# """ #??# """ | | ???????????????????????????????????# "R !#??# | | ???????????????????????????????????Y """ #??#[ [ | | ????????????????????????????????????? #??##### | | ?????????????????????????????????????#####???????? | | ?????????????????????????????????????????????????? | | ?????????????????????????????????????????????????? | | ?????????????????????????????????????????????????? | | ???????????????#########?#########???????????????? | | ???????????????# /?# ####+#####??????? | | ???????????????# # /]] #??????? | | ???????????????# # /]] #####??? | | ???????????????# [ @ ]]] ??? | | ???????????????# # s #???? | | ???????????????# # s #???? | | ???????????????# ?# s #???? | | ???????????????# ?## ##+##### | | ???????????????########???# # # | | ??????????????????????????# # # | | ??????????????????????????# # # | | ??????????????????????????#[] # "T" # | | ??????????????????????????#[] # """ # | | ??????????????????????????# # # | | ??????????????????????????# ###+#### | | ??????????????????????????# | | ?????????????????????????# | | ?????????????????????????## | | ??????????????????????????# | | ??????????????????????????######################## | | ?????????????????????????????????????????????????? | | ?????????????????????????????????????????????????? | | ?????????????????????????????????????????????????? | | | | | | | | | | | +----------------------------------------------------+ Best States ------------- Heat Dissipation 31 Energy Generation 10 Energy Capacity 125 Matter Stores 298 Matter Capacity 300 Sight Range 16 Terrain Scan Density 10 Evasion (%) 63 Item Schematics ----------------- None Robot Schematics ------------------ None Fabricated ------------ Nothing Alien Tech Used ----------------- None Achievements -------------- I Survived The Infestation Slippery One Challenges ------------ None Game ------ Seed CloakLaserDrivehammer Manual? 0 Play Time 00:14:21 Cumulative 21.1 hours Start 2024.10.03 @ 19:47:17 End 2024.10.03 @ 20:01:05 Sessions 1 Manual Loads 0 Difficulty Rogue Special Mode None Game No. 42 Rogue 41 Adventurer 1 Explorer 0 Win Type - Total 0 Types 0/0/0/0/0/0/0/0/0 Lore% 14 Gallery% 25 Achievement% 23 Wizard Run 0 Options --------- Layout 1 ASCII 0 Keyboard 0 Movement Mouse Keybinds 0 Fullscreen 1 Font 32/SmallcapsGlow Map View 50x35 Zoom Use 0% Tactical HUD 1 Map Filters NONE Filters NONE Steam 1 RUN: 13c558ea-50b5-490a-beaf-6d988cfcccd1